bitfinex-derivatives/quotes_BTCF0:USTF0_20210108
["timestamp","ask_amount","ask_price","bid_price","bid_amount"]
[1610094390871,4.0165,38621.0,38611.0,0.00030765]
[1610094391168,4.0165,38621.0,38610.0,0.10665]
[1610094391169,4.0165,38621.0,38613.0,0.00030765]
[1610094391368,4.0165,38621.0,38610.0,0.10665]
[1610094391369,4.0165,38621.0,38612.0,0.00030765]
[1610094391569,0.55972957,38635.0,38614.0,0.00030765]
[1610094391769,0.55972957,38635.0,38613.0,0.00030765]
[1610094392070,4.57037938,38638.0,38611.0,0.03159775]
[1610094392071,0.56084989,38636.0,38615.0,0.00030763]
[1610094392268,0.56084989,38636.0,38616.0,0.13632608]
[1610094392568,0.56118715,38637.0,38617.0,0.03190349]
[1610094392968,4.44815881,38638.0,38617.0,0.03190349]
[1610094393368,0.65682945,38637.0,38617.0,0.03190349]
[1610094393770,4.44832717,38638.0,38617.0,0.03190349]
[1610094394170,0.56202717,38638.0,38617.0,0.03190349]
[1610094394469,0.56202717,38638.0,38629.0,0.13632608]
[1610094394671,0.65689184,38639.0,38630.0,0.0003076]
[1610094394970,0.56210258,38641.0,38630.0,0.0003076]
[1610094395269,0.56207366,38643.0,38630.0,0.0003076]
[1610094395869,0.56215424,38645.0,38630.0,0.0003076]
[1610094396072,0.56212269,38646.0,38630.0,0.0003076]
[1610094396276,0.13632608,38631.0,38630.0,0.0003076]
[1610094396871,0.13632608,38631.0,38619.0,0.03189945]
[1610094397170,0.13632608,38631.0,38630.0,0.00030758]
[1610094397369,0.13632608,38631.0,38626.0,0.10583]
[1610094397570,0.13632608,38631.0,38630.0,0.00030758]
[1610094398471,0.13632608,38631.0,38628.0,0.13663366]
[1610094398672,0.13632608,38631.0,38630.0,0.00030758]
[1610094398974,0.13632608,38631.0,38629.0,0.00030758]
[1610094401276,0.13632608,38631.0,38629.0,0.03189586]
[1610094404982,0.12198,38657.0,38629.0,0.03189586]
[1610094405184,0.56036598,38659.0,38629.0,0.03189586]
[1610094405383,0.560129,38660.0,38629.0,0.03189586]
[1610094406184,3.9942,38671.0,38629.0,0.03189586]
[1610094406185,0.56011524,38661.0,38629.0,0.03189586]
[1610094406386,0.56011524,38661.0,38644.0,0.13632608]
[1610094406787,0.56011524,38661.0,38645.0,0.00030748]
[1610094407488,0.559886,38662.0,38645.0,0.00030748]
[1610094407788,0.55974504,38660.0,38629.0,0.03189099]
[1610094407987,0.55974504,38660.0,38646.0,0.0003075]
[1610094408188,0.55977297,38657.0,38630.0,0.00030837]
[1610094408388,0.55977297,38657.0,38631.0,0.13632608]
[1610094408589,1.14358378,38659.0,38631.0,0.13663445]
[1610094408889,1.14358378,38659.0,38632.0,0.00030837]
[1610094409690,0.81096305,38658.0,38632.0,0.00030837]
[1610094410088,1.14358255,38659.0,38632.0,0.00030837]
[1610094410489,0.13632608,38633.0,38632.0,0.00030837]
[1610094411390,0.13632608,38633.0,38632.0,0.03189377]
[1610094413592,0.13632608,38633.0,38627.0,0.03189644]
[1610094413991,0.13632608,38633.0,38619.0,0.03189667]
[1610094414292,3.3285,38628.0,38602.0,0.06317654]
[1610094414492,0.13632608,38619.0,38612.0,0.13632608]
[1610094414692,0.13632608,38619.0,38613.0,0.03189987]
[1610094416494,3.3285,38628.0,38616.0,0.13632608]
[1610094416797,3.3285,38628.0,38617.0,0.0319044]
[1610094417198,0.1569,38642.0,38617.0,0.0319044]
[1610094417597,0.7172399,38642.0,38617.0,0.0319044]
[1610094418097,0.1569,38642.0,38617.0,0.0319044]
[1610094418696,0.56033087,38643.0,38617.0,0.0319044]
[1610094418898,0.56043854,38645.0,38617.0,0.0319044]
[1610094419097,0.56043854,38645.0,38616.0,0.13632608]
[1610094419299,0.56041876,38648.0,38616.0,0.13632608]
[1610094419500,0.56041876,38648.0,38618.0,0.13293065]
[1610094419798,0.11089,38654.0,38618.0,0.13293065]
[1610094419799,0.56049672,38650.0,38624.0,3.805]
[1610094420199,0.7978887,38653.0,38625.0,0.0950719]
[1610094420398,0.7978887,38653.0,38633.0,0.13632608]
[1610094420698,0.11089,38654.0,38633.0,0.13632608]
[1610094420900,0.56045209,38655.0,38633.0,0.13632608]
[1610094421099,0.56045209,38655.0,38634.0,0.03189504]
[1610094421500,0.56056439,38657.0,38634.0,0.03189504]
[1610094421799,0.56056439,38657.0,38630.0,0.03189415]
[1610094422102,0.56056678,38656.0,38635.0,0.03189429]
[1610094422299,0.56056678,38656.0,38630.0,0.03189366]
[1610094422500,0.56056678,38656.0,38636.0,0.03158546]
[1610094422700,0.56056678,38656.0,38629.0,0.08898975]
[1610094422900,0.98646678,38656.0,38629.0,0.08898975]
[1610094423200,0.56072185,38655.0,38630.0,0.0318951]
[1610094423500,0.56091064,38653.0,38630.0,0.0318951]
[1610094424000,0.5609203,38652.0,38630.0,0.0318951]
[1610094424499,0.13632608,38631.0,38630.0,0.0318951]
[1610094426202,0.37697885,38628.0,38625.0,0.19950175]
[1610094426502,0.13632608,38627.0,38626.0,0.03189386]
[1610094432509,0.37697885,38628.0,38626.0,0.03189386]
[1610094432710,0.37697885,38628.0,38626.0,0.14499386]
[1610094433110,0.37697885,38628.0,38627.0,0.03189166]
[1610094436914,0.37697885,38628.0,38627.0,3.05319166]
[1610094437317,0.37697885,38628.0,38627.0,3.11635985]
[1610094438318,0.37697885,38628.0,38627.0,0.09505985]
[1610094438618,0.37697885,38628.0,38627.0,0.03189166]
[1610094440720,0.51330493,38628.0,38627.0,0.03189166]
[1610094443523,0.51330493,38628.0,38621.0,0.03189943]
[1610094443824,0.37697885,38628.0,38621.0,0.03189943]
[1610094444722,0.37697885,38628.0,38627.0,0.13632608]
[1610094445021,0.37697885,38628.0,38627.0,0.21785608]
[1610094445224,0.37697885,38628.0,38627.0,0.24975118]
[1610094448926,0.37697885,38628.0,38627.0,0.73515118]
[1610094449329,0.37697885,38628.0,38627.0,0.7983111]
[1610094451027,0.13632608,38667.0,38627.0,0.7983111]
[1610094451228,0.13632608,38667.0,38628.0,0.09500905]
[1610094452533,0.13632608,38667.0,38666.0,0.13632608]
[1610094453232,0.13632608,38667.0,38666.0,0.13663427]
[1610094455133,0.56405758,38679.0,38666.0,0.13663427]
[1610094455538,0.56374761,38680.0,38666.0,0.13663427]
[1610094455735,0.56374761,38680.0,38667.0,0.00030814]
[1610094455937,0.56372935,38684.0,38667.0,0.0318702]
[1610094456436,0.56369171,38685.0,38667.0,0.0318702]
[1610094456638,0.56322634,38689.0,38683.0,0.13632608]
[1610094457134,0.56321861,38690.0,38683.0,0.13632608]
[1610094457334,0.56321861,38690.0,38684.0,0.0003081]
[1610094457634,0.56276195,38692.0,38684.0,0.0003081]
[1610094457836,0.56266345,38697.0,38684.0,0.0003081]
[1610094458237,4.86346506,38700.0,38684.0,0.0003081]
[1610094458238,0.56265122,38698.0,38684.0,0.0003081]
[1610094458636,4.1758,38700.0,38697.0,0.13632608]
[1610094459137,0.56208716,38701.0,38697.0,0.13632608]
[1610094459338,0.56205387,38703.0,38697.0,0.13632608]
[1610094459738,0.56147227,38705.0,38697.0,0.13632608]
[1610094460142,0.56144844,38708.0,38698.0,0.00030796]
[1610094460542,0.56086387,38710.0,38698.0,0.00030796]
[1610094460741,0.56086387,38710.0,38706.0,0.13632608]
[1610094461845,0.56036275,38711.0,38706.0,0.13632608]
[1610094462246,4.16631666,38713.0,38706.0,0.13632608]
[1610094462544,3.606,38713.0,38706.0,0.13632608]
[1610094462745,0.13632608,38707.0,38706.0,0.13632608]
[1610094463547,0.55934232,38715.0,38706.0,0.13632608]
[1610094463748,0.55930425,38717.0,38706.0,0.13632608]
[1610094464150,0.55931019,38719.0,38706.0,0.13632608]
[1610094464450,0.09268,38721.0,38706.0,0.13632608]
[1610094464653,0.09268,38721.0,38716.0,0.13632608]
[1610094465454,0.09268,38721.0,38698.0,4.3133]
[1610094465654,3.2381,38717.0,38693.0,4.1503]
[1610094465854,0.09268,38721.0,38690.0,0.10277]
[1610094466055,3.0381,38711.0,38690.0,0.10277]
[1610094466257,0.09268,38721.0,38690.0,0.10277]
[1610094466456,0.09268,38721.0,38692.0,3.504]
[1610094466656,0.09268,38721.0,38707.0,0.13632608]
[1610094468058,0.55750516,38726.0,38707.0,0.13632608]
[1610094468259,0.5881,38722.0,38707.0,0.13632608]
[1610094468659,0.5881,38722.0,38712.0,0.13632608]
[1610094470359,0.10544,38728.0,38712.0,0.13632608]
[1610094470862,0.13632608,38713.0,38712.0,0.13632608]
[1610094471060,0.0774,38722.0,38712.0,0.13632608]
[1610094471258,0.0776,38727.0,38712.0,0.13632608]
[1610094471458,0.10544,38728.0,38712.0,0.13632608]
[1610094472760,0.10544,38728.0,38720.0,0.13632608]
[1610094473363,0.0771,38727.0,38720.0,0.13632608]
[1610094473862,0.0777,38733.0,38720.0,0.13632608]
[1610094474063,0.11386,38736.0,38720.0,0.13632608]
[1610094474662,0.11386,38736.0,38733.0,0.13632608]
[1610094475066,0.11386,38736.0,38707.0,3.2066]
[1610094476067,0.11386,38736.0,38707.0,3.1906]
[1610094476870,0.11386,38736.0,38726.0,0.13632608]
[1610094477069,0.11386,38736.0,38707.0,3.1906]
[1610094478070,0.11386,38736.0,38707.0,3.1746]
[1610094478572,0.5548331,38739.0,38707.0,3.1746]
[1610094478774,0.5548331,38739.0,38722.0,0.13632608]
[1610094479073,0.8311855,38741.0,38722.0,0.13632608]
[1610094479471,0.2764,38741.0,38722.0,0.13632608]
[1610094480070,0.2764,38741.0,38722.0,0.12832608]
[1610094480874,0.13632608,38728.0,38722.0,0.12832608]
[1610094481776,0.08473,38743.0,38722.0,0.12832608]
[1610094482779,0.08473,38743.0,38742.0,0.13632608]
[1610094483681,0.63463,38743.0,38742.0,0.13474985]
[1610094483879,0.63463,38743.0,38706.0,0.10709]
[1610094484079,0.08473,38743.0,38698.0,0.11138]
[1610094484280,2.9287,38739.0,38707.0,0.00030741]
[1610094484681,2.9287,38739.0,38699.0,0.00030743]
[1610094484883,0.08473,38743.0,38733.0,0.13632608]
[1610094485683,0.55398381,38751.0,38733.0,0.13632608]
[1610094485884,0.2947,38754.0,38733.0,0.13632608]
[1610094486085,0.00031524,38753.0,38733.0,0.13632608]
[1610094486583,0.2947,38754.0,38734.0,0.00030737]
[1610094486781,0.00031522,38752.0,38745.0,0.13632608]
[1610094487084,0.00031522,38753.0,38745.0,0.13632608]
[1610094487281,0.00031522,38751.0,38745.0,0.13632608]
[1610094487582,0.00031522,38752.0,38745.0,0.13632608]
[1610094487783,0.00031522,38760.0,38745.0,0.13632608]
[1610094487983,0.00031522,38751.0,38745.0,0.13632608]
[1610094488184,0.00031519,38759.0,38745.0,0.13632608]
[1610094488584,0.00031519,38760.0,38745.0,0.13632608]
[1610094488789,0.11895,38761.0,38745.0,0.13632608]
[1610094488790,0.13632608,38746.0,38745.0,0.13632608]
[1610094489586,0.11895,38761.0,38745.0,0.13632608]
[1610094490187,0.55315089,38768.0,38745.0,0.13632608]
[1610094490388,0.55309969,38772.0,38745.0,0.13632608]
[1610094490688,0.00031513,38767.0,38745.0,0.13632608]
[1610094490989,0.00031513,38771.0,38759.0,0.13632608]
[1610094491188,0.00031513,38766.0,38759.0,0.13632608]
[1610094491390,0.00031513,38770.0,38759.0,0.13632608]
[1610094491588,0.09321,38773.0,38759.0,0.13632608]
[1610094491888,0.00031511,38769.0,38759.0,0.13632608]
[1610094492188,0.00031511,38772.0,38759.0,0.13632608]
[1610094492388,0.00031511,38768.0,38759.0,0.13632608]
[1610094492888,0.00031511,38772.0,38765.0,0.13632608]
[1610094493088,0.1569,38780.0,38765.0,0.13632608]
[1610094493289,0.00031509,38771.0,38765.0,0.13632608]
[1610094493490,0.00031509,38779.0,38765.0,0.13632608]
[1610094493893,0.1569,38780.0,38765.0,0.13632608]
[1610094494192,0.11255,38782.0,38765.0,0.13632608]
[1610094494992,0.13632608,38766.0,38765.0,0.13632608]
[1610094495993,0.13632608,38766.0,38765.0,0.12032608]
[1610094497694,0.13632608,38766.0,38753.0,0.08783]
[1610094497896,0.13632608,38766.0,38745.0,0.11361]
[1610094498095,0.13632608,38766.0,38745.0,0.09761]
[1610094498295,0.13632608,38766.0,38737.0,0.09876]
[1610094498496,0.13632608,38766.0,38729.0,0.12418]
[1610094498696,0.13632608,38766.0,38738.0,0.00030723]
[1610094498899,0.11015,38774.0,38742.0,0.13632608]
[1610094499298,0.00031514,38773.0,38728.0,0.07953]
[1610094499899,0.00031514,38773.0,38728.0,0.07153]
[1610094500098,0.29511514,38773.0,38728.0,0.07153]
[1610094500300,0.41992362,38766.0,38728.0,0.07153]
[1610094500498,0.51514362,38766.0,38728.0,0.07153]
[1610094500899,0.51514362,38766.0,38757.0,0.13632608]
[1610094502903,0.51514362,38766.0,38745.0,0.10835]
[1610094502904,0.51514362,38766.0,38765.0,0.13632608]
[1610094503102,0.41992362,38766.0,38765.0,0.13632608]
[1610094505007,0.5562497,38766.0,38765.0,0.13632608]
[1610094506811,0.41992362,38766.0,38765.0,0.13632608]
[1610094508509,0.41992362,38766.0,38753.0,0.10781]
[1610094508711,0.41992362,38766.0,38745.0,0.10835]
[1610094508913,0.41992362,38766.0,38765.0,0.13632608]
[1610094510810,0.41992362,38766.0,38744.0,0.09721]
[1610094511211,0.41992362,38766.0,38745.0,0.00030721]
[1610094512910,0.41992362,38766.0,38758.0,0.13632608]
[1610094515014,0.41992362,38766.0,38765.0,0.13632608]
[1610094515615,0.41992362,38766.0,38765.0,0.13663326]
[1610094516014,0.41992362,38766.0,38765.0,0.13133326]
[1610094519020,0.5562497,38766.0,38765.0,0.13133326]
[1610094519220,0.5562497,38766.0,38765.0,0.00030718]
[1610094519721,0.5562497,38766.0,38761.0,0.00030718]
[1610094519924,0.5562497,38766.0,38765.0,0.0003072]
[1610094520122,0.5562497,38766.0,38762.0,0.0003072]
[1610094520322,0.5562497,38766.0,38765.0,0.0003072]
[1610094521223,0.5562497,38766.0,38764.0,0.0003072]
[1610094521521,0.5562497,38766.0,38765.0,0.0003072]
[1610094521923,0.5562497,38766.0,38745.0,0.03181452]
[1610094522222,0.5562497,38766.0,38765.0,0.00030722]
[1610094522421,0.5562497,38766.0,38746.0,0.00030722]
[1610094522725,0.5562497,38766.0,38745.0,0.03181452]
[1610094523023,0.41992362,38766.0,38755.0,0.13632608]
[1610094523528,0.41992362,38766.0,38756.0,0.00030722]
[1610094525021,0.41992362,38766.0,38759.0,0.13632608]
[1610094525324,0.41992362,38766.0,38760.0,0.00030719]
[1610094527023,0.13632608,38761.0,38760.0,0.00030719]
[1610094527824,0.13632608,38761.0,38745.0,0.0318116]
[1610094528026,0.13632608,38761.0,38760.0,0.00030719]
[1610094528224,0.13632608,38761.0,38746.0,0.00030719]
[1610094528625,0.13632608,38761.0,38745.0,0.03181162]
[1610094528824,0.13632608,38761.0,38747.0,0.00030721]
[1610094529024,0.13632608,38748.0,38746.0,0.00031485]
[1610094529326,0.13632608,38748.0,38745.0,0.13632608]
[1610094529525,0.13632608,38748.0,38747.0,0.00031485]
[1610094529924,0.13632608,38748.0,38746.0,0.03182495]
[1610094530125,0.13632608,38748.0,38747.0,0.00031485]
[1610094530728,0.13632608,38748.0,38746.0,0.03182493]
[1610094530929,0.13632608,38748.0,38747.0,0.00031483]
[1610094531128,0.13632608,38748.0,38746.0,0.03182493]
[1610094531530,0.13632608,38748.0,38747.0,0.00031485]
[1610094531930,0.13632608,38748.0,38746.0,0.03182495]
[1610094532332,0.13632608,38748.0,38747.0,0.00031485]
[1610094532732,0.13632608,38748.0,38746.0,0.03182495]
[1610094532935,0.13632608,38748.0,38747.0,0.00031485]
[1610094533535,0.13632608,38748.0,38746.0,0.03182495]
[1610094533733,0.13632608,38748.0,38747.0,0.00031485]
[1610094534135,0.13632608,38748.0,38746.0,0.03182495]
[1610094534336,0.13632608,38748.0,38747.0,0.00031489]
[1610094535037,0.13632608,38748.0,38747.0,0.00031492]
[1610094535437,0.13632608,38748.0,38735.0,0.0318326]
[1610094536236,0.69751395,38748.0,38735.0,0.0318326]
[1610094536636,0.87957929,38747.0,38735.0,0.0318326]
[1610094537038,0.13632608,38736.0,38735.0,0.0318326]
[1610094537640,0.56175767,38746.0,38735.0,0.0318326]
[1610094538042,0.56172379,38748.0,38735.0,0.0318326]
[1610094538342,0.94028916,38749.0,38735.0,0.0318326]
[1610094539040,0.94028916,38749.0,38743.0,0.13632608]
[1610094539243,0.64326809,38750.0,38743.0,0.13632608]
[1610094539642,0.64326809,38750.0,38744.0,0.00031492]
[1610094540342,0.08119,38750.0,38744.0,0.00031492]
[1610094540746,0.56242705,38750.0,38744.0,0.00031492]
[1610094540943,0.56242705,38750.0,38727.0,0.0318312]
[1610094541144,0.56271588,38748.0,38739.0,0.13632608]
[1610094541544,0.56270606,38747.0,38740.0,0.00031492]
[1610094541843,0.37822104,38758.0,38740.0,0.00031492]
[1610094541844,0.56270797,38749.0,38740.0,0.03183064]
[1610094542444,0.56270797,38749.0,38740.0,0.00031492]
[1610094542644,0.56292105,38747.0,38740.0,0.00031492]
[1610094542844,0.56292105,38747.0,38741.0,0.03183091]
[1610094543046,0.87556812,38760.0,38741.0,0.03183091]
[1610094543047,0.13632608,38742.0,38741.0,0.00031492]
[1610094543247,0.13632608,38742.0,38740.0,0.0318311]
[1610094543447,0.13632608,38742.0,38741.0,0.00031492]
[1610094544046,0.13632608,38742.0,38740.0,0.03183107]
[1610094544248,0.13632608,38742.0,38741.0,0.00031489]
[1610094544948,0.13632608,38742.0,38740.0,0.03183107]
[1610094545148,0.13632608,38742.0,38741.0,0.00031489]
[1610094545349,0.13632608,38742.0,38740.0,0.03183107]
[1610094545851,0.13632608,38742.0,38741.0,0.00031489]
[1610094546148,0.13632608,38742.0,38740.0,0.03183107]
[1610094546649,0.56370949,38751.0,38741.0,0.00031489]
[1610094547051,0.56370949,38751.0,38745.0,0.13632608]
[1610094547452,0.56370949,38751.0,38746.0,0.00031487]
[1610094547854,0.56406291,38750.0,38746.0,0.00031487]
[1610094548150,0.56406291,38750.0,38746.0,0.03182763]
[1610094548352,0.5640598,38751.0,38746.0,0.03182763]
[1610094549154,0.13632608,38747.0,38744.0,0.13632608]
[1610094549552,0.13632608,38747.0,38745.0,0.03182784]
[1610094554257,0.13632608,38747.0,38746.0,0.03183032]
[1610094554659,0.13632608,38747.0,38745.0,0.03183019]
[1610094554858,0.13632608,38747.0,38746.0,0.0318301]
[1610094555359,0.56436579,38750.0,38745.0,0.03182979]
[1610094555561,0.56435032,38752.0,38747.0,0.03182875]
[1610094555961,0.78375895,38758.0,38746.0,0.03182592]
[1610094555962,0.56428449,38753.0,38746.0,0.03182592]
[1610094556163,0.56428449,38753.0,38744.0,0.12032608]
[1610094556361,0.56425998,38756.0,38744.0,0.12032608]
[1610094556564,0.56425998,38756.0,38745.0,0.03182427]
[1610094556762,0.56422226,38758.0,38745.0,0.03182427]
[1610094557163,0.56422226,38758.0,38756.0,0.13632608]
[1610094557565,0.70051225,38759.0,38757.0,0.03182054]
[1610094557967,0.13632608,38759.0,38756.0,0.12032608]
[1610094558166,0.56417721,38760.0,38756.0,0.12032608]
[1610094558567,0.564175,38761.0,38756.0,0.12032608]
[1610094558768,0.56414226,38762.0,38756.0,0.12032608]
[1610094559169,0.56404563,38764.0,38761.0,0.13632608]
[1610094559569,0.5562497,38766.0,38762.0,0.03181371]
[1610094560169,0.5562497,38766.0,38761.0,0.12032608]
[1610094561071,0.5562497,38766.0,38765.0,0.13632608]
[1610094561273,0.41992362,38766.0,38765.0,0.13632608]
[1610094561570,0.41992362,38766.0,38765.0,0.16813579]
[1610094561971,0.41992362,38766.0,38765.0,0.16223579]
[1610094565984,0.41992362,38766.0,38765.0,0.14623579]
[1610094566282,0.41992362,38766.0,38765.0,0.11474077]
[1610094568086,0.41992362,38766.0,38765.0,0.11144077]
[1610094582709,0.41992362,38766.0,38765.0,0.14293191]
[1610094583109,0.41992362,38766.0,38765.0,0.11144077]
[1610094584815,0.41992362,38766.0,38765.0,0.14293018]
[1610094593020,0.41992362,38766.0,38765.0,0.0318041]
[1610094593428,0.41992362,38766.0,38760.0,0.03180956]
[1610094593621,0.41992362,38766.0,38765.0,0.03181036]
[1610094593822,0.41992362,38766.0,38761.0,0.03181145]
[1610094594219,0.41992362,38766.0,38757.0,0.03181138]
[1610094594419,0.41992362,38766.0,38762.0,0.0318114]
[1610094594621,0.41992362,38766.0,38756.0,0.13632608]
[1610094594622,0.41992362,38766.0,38758.0,0.03181102]
[1610094594919,0.41992362,38766.0,38763.0,0.03181097]
[1610094595120,0.41992362,38766.0,38759.0,0.03181092]
[1610094595322,0.41992362,38766.0,38762.0,0.13632608]
[1610094595521,0.41992362,38766.0,38764.0,0.00031322]
[1610094595720,0.41992362,38766.0,38763.0,0.03181046]
[1610094596021,0.41992362,38766.0,38765.0,0.0003132]
[1610094596220,0.41992362,38766.0,38763.0,0.03181044]
[1610094596420,0.41992362,38766.0,38765.0,0.0003132]
[1610094596822,0.41992362,38766.0,38764.0,0.0003132]
[1610094597021,0.41992362,38766.0,38763.0,0.03149724]
[1610094597022,0.41992362,38766.0,38765.0,0.0003132]
[1610094597622,0.41992362,38766.0,38763.0,0.03181044]
[1610094597825,0.41992362,38766.0,38765.0,0.0003132]
[1610094598022,0.41992362,38766.0,38764.0,0.0003132]
[1610094598324,0.41992362,38766.0,38763.0,0.03181044]
[1610094598524,0.41992362,38766.0,38765.0,0.0003132]
[1610094598924,0.41992362,38766.0,38764.0,0.0003132]
[1610094599224,0.41992362,38766.0,38765.0,0.0003132]
[1610094599725,0.41992362,38766.0,38763.0,0.03181044]
[1610094599924,0.41992362,38766.0,38765.0,0.0003132]
[1610094600124,0.41992362,38766.0,38764.0,0.0003132]
[1610094600526,0.41992362,38766.0,38763.0,0.03181044]
[1610094600726,0.41992362,38766.0,38765.0,0.0003132]
[1610094600928,0.41992362,38766.0,38764.0,0.00031318]
[1610094601228,0.41992362,38766.0,38763.0,0.03181042]
[1610094601527,0.41992362,38766.0,38765.0,0.00031318]
[1610094601728,0.41992362,38766.0,38764.0,0.00031318]
[1610094602128,0.41992362,38766.0,38765.0,0.00031318]
[1610094602628,0.41992362,38766.0,38763.0,0.03181042]
[1610094602833,0.41992362,38766.0,38765.0,0.00031318]
[1610094603030,0.41992362,38766.0,38764.0,0.00031318]
[1610094603333,0.41992362,38766.0,38765.0,0.00031318]
[1610094603933,0.41992362,38766.0,38763.0,0.03181042]
[1610094604132,0.41992362,38766.0,38765.0,0.00031318]
[1610094604333,0.41992362,38766.0,38764.0,0.00031318]
[1610094604734,0.41992362,38766.0,38751.0,0.03149496]
[1610094604735,0.41992362,38766.0,38751.0,0.03180814]
[1610094604934,0.41992362,38766.0,38765.0,0.00031318]
[1610094605134,0.41992362,38766.0,38752.0,0.00031318]
[1610094605436,0.41992362,38766.0,38752.0,0.13632608]
[1610094605437,0.13632608,38753.0,38752.0,0.13632608]
[1610094605635,0.13632608,38753.0,38752.0,0.16813727]
[1610094607638,0.13632608,38753.0,38752.0,0.03181119]
[1610094608042,0.13632608,38753.0,38751.0,0.03181426]
[1610094608439,0.13632608,38753.0,38752.0,0.03181466]
[1610094608839,0.13632608,38753.0,38743.0,0.03181576]
[1610094609241,0.13632608,38753.0,38752.0,0.0318203]
[1610094609439,0.13632608,38753.0,38744.0,0.03182043]
[1610094611240,0.13632608,38753.0,38743.0,0.03182068]
[1610094611440,0.13632608,38745.0,38742.0,0.10821]
[1610094611740,0.13632608,38745.0,38744.0,0.03182091]
[1610094612041,0.13632608,38745.0,38743.0,0.03182094]
[1610094612339,0.13632608,38745.0,38744.0,0.03182094]
[1610094612739,0.13632608,38745.0,38740.0,0.03182096]
[1610094613140,0.13632608,38745.0,38744.0,0.03182141]
[1610094613342,0.13632608,38745.0,38741.0,0.03182122]
[1610094613540,0.56308548,38759.0,38744.0,0.03182083]
[1610094613841,0.56326749,38760.0,38742.0,0.0318207]
[1610094614139,0.56326749,38760.0,38745.0,0.03182075]
[1610094614340,0.56324876,38761.0,38743.0,0.03181994]
[1610094614743,0.56324876,38761.0,38740.0,0.03181941]
[1610094614941,0.56324876,38761.0,38744.0,0.03182001]
[1610094615143,0.5633945,38760.0,38741.0,0.03182047]
[1610094615343,0.13632608,38742.0,38741.0,0.03182047]
[1610094615543,0.13632608,38742.0,38739.0,0.13632608]
[1610094615544,0.13632608,38742.0,38740.0,0.03182049]
[1610094615743,0.13632608,38742.0,38741.0,0.0318203]
[1610094616244,0.13632608,38742.0,38740.0,0.0318197]
[1610094616444,0.13632608,38742.0,38739.0,0.13632608]
[1610094616844,0.13632608,38742.0,38740.0,0.0318203]
[1610094621752,0.56322807,38757.0,38740.0,0.0318203]
[1610094621955,0.56310814,38759.0,38740.0,0.0318203]
[1610094622354,0.5630928,38760.0,38740.0,0.0318203]
[1610094622555,0.56300938,38762.0,38740.0,0.0318203]
[1610094623354,0.56300938,38762.0,38744.0,0.13632608]
[1610094623555,0.56297657,38760.0,38744.0,0.13632608]
[1610094623959,0.56297657,38760.0,38745.0,0.03181948]
[1610094624856,0.94104602,38760.0,38745.0,0.03181948]
[1610094625356,0.13632608,38746.0,38745.0,0.03181948]
[1610094628960,0.9827616,38766.0,38745.0,0.03181948]
[1610094629159,0.9827616,38766.0,38745.0,0.13251948]
[1610094629363,0.13632608,38754.0,38752.0,0.13632608]
[1610094629661,0.13632608,38754.0,38753.0,0.03180959]
[1610094632566,0.13632608,38754.0,38745.0,0.1007]
[1610094632567,0.13632608,38754.0,38746.0,0.03181153]
[1610094632764,0.13632608,38754.0,38745.0,0.1007]
[1610094632765,0.13632608,38754.0,38753.0,0.03181109]
[1610094633265,0.13632608,38754.0,38747.0,0.03181262]
[1610094633465,0.13632608,38748.0,38746.0,0.13632608]
[1610094633865,0.13632608,38748.0,38747.0,0.03181398]
[1610094634370,1.63632608,38748.0,38747.0,0.03181398]
[1610094634566,0.13632608,38748.0,38747.0,0.03181398]
[1610094634768,0.13632608,38748.0,38746.0,0.0318186]
[1610094634967,0.13632608,38748.0,38747.0,0.03182096]
[1610094635167,0.13632608,38748.0,38719.0,0.11284]
[1610094635368,2.18209993,38750.0,38719.0,0.11284]
[1610094635768,0.56344692,38744.0,38720.0,0.03182955]
[1610094636068,0.56345995,38741.0,38720.0,0.03182955]
[1610094636267,0.65703995,38741.0,38720.0,0.03182955]
[1610094636471,0.56326906,38739.0,38720.0,0.03182955]
[1610094636973,0.56326906,38739.0,38721.0,0.03183357]
[1610094637471,0.56330653,38738.0,38717.0,0.13632608]
[1610094637671,0.56305487,38736.0,38717.0,0.13632608]
[1610094637870,0.56305487,38736.0,38718.0,0.03183442]
[1610094638072,0.56304931,38738.0,38718.0,0.03183442]
[1610094638271,0.56304931,38738.0,38718.0,0.00031345]
[1610094638471,0.56304931,38738.0,38719.0,0.00031345]
[1610094638672,0.56304931,38738.0,38719.0,0.03152069]
[1610094638873,0.65636634,38741.0,38720.0,0.00031344]
[1610094639072,0.65636634,38741.0,38720.0,0.03183315]
[1610094639573,0.65636634,38741.0,38724.0,0.13632608]
[1610094639773,0.09358,38741.0,38724.0,0.13632608]
[1610094639972,0.09358,38741.0,38725.0,0.03183084]
[1610094641474,0.13632608,38726.0,38725.0,0.03183084]
[1610094641674,0.09358,38741.0,38725.0,0.03183084]
[1610094641974,0.56246212,38745.0,38725.0,0.03183084]
[1610094642375,0.56235979,38746.0,38725.0,0.03183084]
[1610094643876,0.56235979,38746.0,38720.0,0.03183036]
[1610094644177,0.56238451,38745.0,38726.0,0.00031342]
[1610094644477,0.56226156,38744.0,38720.0,0.0318309]
[1610094644777,0.56226156,38744.0,38727.0,0.00031342]
[1610094644977,0.56226156,38744.0,38721.0,0.00031342]
[1610094645178,0.56234111,38742.0,38720.0,0.0318309]
[1610094645377,0.13632608,38721.0,38720.0,0.16815698]
[1610094645578,0.13632608,38721.0,38720.0,0.16784356]
[1610094646079,0.13632608,38721.0,38720.0,0.1274395]
[1610094647678,0.12078,38742.0,38720.0,0.1274395]
[1610094648178,0.12078,38742.0,38721.0,0.03182797]
[1610094649379,0.12078,38742.0,38724.0,0.13632608]
[1610094649980,0.12078,38742.0,38725.0,0.03182955]
[1610094650482,0.56235669,38745.0,38726.0,0.00031469]
[1610094650782,1.5,38744.0,38726.0,0.00031469]
[1610094650982,1.5,38744.0,38718.0,0.03183192]
[1610094651181,1.5,38744.0,38726.0,0.03151738]
[1610094651382,0.13632608,38728.0,38727.0,0.00031469]
[1610094651584,0.13632608,38728.0,38719.0,0.16815834]
[1610094651783,0.13632608,38728.0,38719.0,0.13632608]
[1610094651983,0.13632608,38728.0,38720.0,0.03183437]
[1610094652584,1.63632608,38728.0,38708.0,0.03183896]
[1610094652784,1.63632608,38728.0,38721.0,0.00031477]
[1610094653287,1.63632608,38728.0,38722.0,0.0003148]
[1610094653485,0.13632608,38723.0,38722.0,0.0003148]
[1610094653687,1.63632608,38723.0,38699.0,0.03184231]
[1610094653886,1.63632608,38723.0,38722.0,0.00031483]
[1610094654087,1.63632608,38723.0,38700.0,0.03184611]
[1610094654487,1.63632608,38723.0,38688.0,0.12135]
[1610094654488,1.63632608,38723.0,38689.0,0.03184885]
[1610094654687,1.63632608,38723.0,38701.0,0.03184939]
[1610094654888,1.63632608,38723.0,38690.0,0.0318531]
[1610094655089,0.56219116,38720.0,38690.0,0.0318531]
[1610094655389,0.56171385,38716.0,38691.0,0.03185432]
[1610094655690,0.56171385,38716.0,38690.0,0.03185432]
[1610094656088,0.56171385,38716.0,38692.0,0.03185405]
[1610094656289,0.56171385,38716.0,38685.0,0.13562608]